Cogmind - Beta 14 @@@ ROGUE MODE // 2024.10.24 @ 02:12:09 Player: Ae Result: Destroyed by exploding Fusion Modulator Performance ------------- Evolutions (4) 2000 Regions Visited (5) 1000 Robots Destroyed (57) 285 Value Destroyed (1559) 1559 Prototype IDs (22) 440 Alien Tech Used (0) 0 Bonus (537) 537 TOTAL SCORE: 5821 Bonus ------- High Alert Combat Kills 12 Follower Combat Kills 225 Registered with UFD 300 Cogmind --------- Core Integrity 0/850 Matter 300/300 Energy 100/100 System Corruption 5% Temperature Cool (12) Movement Core (1350) Ox26 Location -6/Factory Parts ------- > --- POWER (1) -------- (None) > --- PROPULSION (3) --- (None) > --- UTILITY (8) ------ Huge Storage Unit > --- WEAPON (3) ------- (None) > --- INVENTORY (25) --- Scrap Suit High-capacity Storage Unit Energy Well (350) Deep Structural Scanner Surveybot 17 Chip Relay Coupler [Grunt] (21) Relay Coupler [Sentry] (15) Relay Coupler [Hunter] A0-MCA's Component Scanner Trap Extractor (1/4 Vortex) Mapping Drone Bay (3/3) Heavy Particle Cannon Heavy Missile Launcher Remote Datajack CPS Tube (2) DRS Beacon (Ready) Botcube Peak State ------------ > --- POWER ------------ Fusion Compressor > --- PROPULSION ------- Overtuned Scrapsphere Armored Huge Wheel > --- UTILITY ---------- Scrap Suit Huge Storage Unit Seismic Detector Phase Shifter Layered Light Armor Plating Scrap Shield > --- WEAPON ----------- Gatling Laser Plasma Rifle Katana > --- INVENTORY -------- Armored Treads Scrap Suit Improved Heat Sink High-capacity Storage Unit Energy Well Deep Structural Scanner Surveybot 17 Chip Layered Light Armor Plating Scrap Shield Relay Coupler [Grunt] Relay Coupler [Sentry] Relay Coupler [Hunter] A0-MCA's Component Scanner Trap Extractor Mapping Drone Bay Improved EM Shotgun Heavy Particle Cannon Ion Cannon High-powered Shotgun Heavy Missile Launcher CPS Tube DRS Beacon Botcube [Rating: 61] Favorites ----------- Power Subdweller Power Source Engine Subdweller Power Source Power Core Fusion Compressor Propulsion Cargo Legs Treads Improved Treads Leg Cargo Legs Wheel Armored Huge Wheel Utility High-capacity Storage Unit Device Seismic Detector Storage High-capacity Storage Unit Processor Signal Interpreter Protection Layered Light Armor Plating Weapon Improved EM Shotgun Energy Gun Improved EM Shotgun Energy Cannon Ion Cannon Ballistic Gun Assault Rifle Launcher Grenade Launcher Special Weapon Mining Laser Slashing Weapon Katana Build | -11 -10 -10 -8 -8 -6 ------- Run | Yrd Mat Sub Rec Scr Fac Slots Evolved 8 | . . . . . 8 Power . | . . . . . . Propulsion 1 | . . . . . 1 Utility 6 | . . . . . 6 Weapon 1 | . . . . . 1 Parts Attached 74 | 9 9 27 . 9 20 Power 10 | 2 1 3 . 3 1 Engine 8 | 2 1 3 . 2 . Core 2 | . . . . 1 1 Reactor . | . . . . . . Propulsion 8 | 2 1 2 . 1 2 Treads 4 | 1 1 1 . . 1 Leg 1 | . . 1 . . . Wheel 3 | 1 . . . 1 1 Hover . | . . . . . . Flight . | . . . . . . Utility 28 | 3 2 6 . 4 13 Device 13 | 1 . 3 . 2 7 Storage 7 | 2 2 . . 2 1 Processor 1 | . . 1 . . . Hackware . | . . . . . . Protection 7 | . . 2 . . 5 Artifact . | . . . . . . Weapon 28 | 2 5 16 . 1 4 Energy Gun 15 | . 4 9 . . 2 Energy Cannon 1 | . . . . . 1 Ballistic Gun 3 | 2 . . . . 1 Ballistic Cannon . | . . . . . . Launcher 2 | . 1 1 . . . Special Weapon 6 | . . 6 . . . Impact Weapon . | . . . . . . Slashing Weapon 1 | . . . . 1 . Piercing Weapon . | . . . . . . Special Melee Weapon . | . . . . . . Unidentified Prototypes 2 | . 1 . . . 1 Parts Lost 24 | . . 6 . . 18 Power 2 | . . 1 . . 1 Propulsion 3 | . . . . . 3 Utility 12 | . . 3 . . 9 Weapon 7 | . . 2 . . 5 Highest Loss Streak 9 | . . 4 . . 9 To Critical Strikes . | . . . . . . Average Slot Usage (%) 86 | . 97 88 87 86 73 Engine 9 | . 14 12 12 8 . Core 2 | . . . . 4 5 Treads 1 | . 14 1 . . 1 Leg 7 | . . 10 12 8 . Wheel 4 | . 14 1 . 3 11 Device 11 | . 14 7 12 12 19 Storage 11 | . 14 12 12 12 6 Processor 7 | . . 10 12 8 . Protection 3 | . . 5 . . 10 Energy Gun 20 | . 24 21 25 20 10 Slashing Weapon 2 | . . . . 4 5 Peak Build Rating 61 | 7 13 31 31 36 61 Average Rating 30 | 5 12 27 31 30 54 On Entrance 18 | . 7 12 31 31 31 Naked Turns . | . . . . . . Heaviest Build 136 | 13 51 58 53 92 136 Greatest Support 55 | 20 10 55 55 55 36 Greatest Overweight (x) 26 | 4 5 5 . 3 26 Average Overweight (x) 1 | 1 3 . . . 4 Largest Inventory Capacity 25 | 8 20 20 20 25 25 Average Capacity 20 | 7 17 20 20 20 25 Most Carried 25 | 6 20 20 20 25 25 Average Carried 18 | 3 14 19 20 18 21 Final Capacity 25 | 8 20 20 20 25 25 Final Carried 25 | 6 20 20 20 25 18 Class Distribution -------------------- 97% | Mutant Dominant Class ---------------- Mutant | -10/Materials Mutant | -10/Subcaves Mutant | -8/Recycling Mutant | -8/Scraptown Mutant | -6/Factory Resources | -11 -10 -10 -8 -8 -6 ----------- Run | Yrd Mat Sub Rec Scr Fac Matter Collected 2191 | 386 370 363 . 406 666 Remotely . | . . . . . . Salvage Created 2084 | 170 547 450 . . 917 Parts 122 | 14 46 28 . . 34 Haulers Intercepted 2 | . 2 . . . . Recyclers Shooed 2 | 2 . . . . . Parts Field Recycled . | . . . . . . Retrieved Matter . | . . . . . . Parts Self-Destructed 11 | . . 11 . . . Prevented . | . . . . . . Kills | -11 -10 -10 -8 -8 -6 ------- Run | Yrd Mat Sub Rec Scr Fac Combat Hostiles Destroyed 36 | . 13 9 . . 14 Guns 28 | . 6 9 . . 13 Cannons 1 | . . . . . 1 AOE 7 | . 7 . . . . Classes Destroyed 13 | 3 6 2 . . 2 Worker 3 | 1 1 . . . 1 Builder 1 | . 1 . . . . Tunneler 6 | 5 1 . . . . Hauler 2 | . 2 . . . . Recycler 4 | 1 . . . . 3 Operator 1 | . 1 . . . . Turret 2 | . . 2 . . . Watcher 2 | . 2 . . . . Swarmer 15 | . 6 2 . . 7 Grunt 11 | . 7 . . . 4 Sentry 1 | . . . . . 1 Programmer 2 | . . . . . 2 Subdweller 7 | . . 7 . . . Best Kill Streak 8 | 5 8 2 . . 7 Combat Bots Only 6 | . 6 2 . . 6 Max Kills in Single Turn 2 | 1 2 1 . . 1 Gunslinging . | . . . . . . Exploded 2 | . 2 . . . . Melee . | . . . . . . Uniques/NPCs Destroyed . | . . . . . . Combat | -11 -10 -10 -8 -8 -6 -------- Run | Yrd Mat Sub Rec Scr Fac Hostile Shots Fired 434 | . 26 109 . . 299 Missed 172 | . 10 48 . . 114 Damage Taken 4860 | . 207 1218 . . 3435 Core 1063 | . 37 175 . . 851 Absorbed by Shields . | . . . . . . Regen/Repaired (Parts) 48 | . . . . . 48 Core Remaining (%) 57 | 100 . . . 15 . Volleys Fired 182 | 24 31 83 . . 44 Largest 2 | 2 2 2 . . 2 Hottest 155 | 40 90 145 . . 155 Shots Fired 291 | 48 50 114 . . 79 Gun 232 | 48 42 66 . . 76 Cannon 3 | . . . . . 3 Launcher 27 | . 8 19 . . . Special 29 | . . 29 . . . Kinetic 65 | 48 . . . . 17 Thermal 91 | . . 29 . . 62 Explosive 27 | . 8 19 . . . Electromagnetic 108 | . 42 66 . . . Robot Hit Streak 32 | 14 10 32 . . 11 Robot Miss Streak 4 | 3 3 3 . . 4 Penetration Max . | . . . . . . Secondary Targets 1 | . . . . . 1 Max Gunslinging Chain 1 | . . . . . 1 Shots Hit Robots 172 | 31 33 50 . . 58 Core Hits 121 | 10 30 32 . . 49 Critical Kills 1 | 1 . . . . . Critical Parts Destroyed 1 | 1 . . . . . Critical Strikes 5 | 2 . 1 . . 2 Burn 2 | . . . . . 2 Destroy 2 | 2 . . . . . Corrupt 1 | . . 1 . . . Melee Attacks 6 | . . . . . 6 Impact . | . . . . . . Slashing 6 | . . . . . 6 Piercing . | . . . . . . Sneak Attacks . | . . . . . . Combat Hostiles . | . . . . . . Follow-up Attacks . | . . . . . . Damage Inflicted 4109 | 305 1130 867 . . 1807 Guns 2900 | 305 550 718 . . 1327 Cannons 45 | . . . . . 45 Explosions 1164 | . 580 149 . . 435 Melee . | . . . . . . Ramming . | . . . . . . Kinetic 564 | 305 . . . . 259 Thermal 1238 | . 125 . . . 1113 Explosive 1039 | . 455 149 . . 435 Electromagnetic 1268 | . 550 718 . . . Impact . | . . . . . . Slashing . | . . . . . . Piercing . | . . . . . . Highest Corruption 5 | . . 4 4 . 5 Average Corruption 3 | . . 4 4 . 1 Corruption Purged . | . . . . . . Corruption Blocked . | . . . . . . Effects 57 | . . 30 20 . 7 Message Errors 17 | . . 8 8 . 1 Matter Fused 16 | . . 7 7 . 2 Heat Flow Errors 7 | . . 5 2 . . Energy Discharges 3 | . . 2 1 . . Parts Rejected 1 | . . . . . 1 Data Loss (minor) 7 | . . 6 . . 1 Data Loss (major) 3 | . . . 2 . 1 Misfires 2 | . . 2 . . . Weapon Failures 1 | . . . . . 1 Overload Shots . | . . . . . . Overflow Damage 107 | . 6 4 . . 97 Projectiles . | . . . . . . Explosions 107 | . 6 4 . . 97 Melee . | . . . . . . Knockbacks . | . . . . . . Impact . | . . . . . . Kinetic . | . . . . . . Secondary . | . . . . . . Self-Inflicted Damage 584 | . 43 38 . . 503 Shots 9 | . 2 1 . . 6 Rammed . | . . . . . . Targets Rammed . | . . . . . . Kicked . | . . . . . . Crushed . | . . . . . . Highest Temperature 380 | . 142 284 173 . 380 Average Temperature 107 | . 50 123 93 . 138 Received Heat Transfer 1148 | . 72 611 . . 465 Effects 6 | . . . . . 6 Shutdowns 1 | . . . . . 1 Energy Bleed 3 | . . . . . 3 Interference 1 | . . . . . 1 Matter Decay 1 | . . . . . 1 Siege Activations . | . . . . . . Robots Corrupted . | . . . . . . Combat Hostiles . | . . . . . . Parts Fried 8 | . 2 6 . . . Impact Corruptions . | . . . . . . Robots Melted . | . . . . . . Combat Hostiles . | . . . . . . Parts Melted 3 | . . . . . 3 Heat Transferred 2849 | . 200 . . . 2649 Parts Sabotaged . | . . . . . . Parts Stolen . | . . . . . . Parts Stripped . | . . . . . . Power Chain Reactions 2 | . 2 . . . . Alert | -11 -10 -10 -8 -8 -6 ------- Run | Yrd Mat Sub Rec Scr Fac Peak Influence 486 | 35 339 . 139 . 486 Initial 139 | . 22 . 139 . . Average 154 | 13 220 . 76 . 189 Maximum Alert Level 2 | . 1 . . . 2 Low Security (%) 60 | 100 28 . 100 . 48 Level 1 34 | . 71 . . . 39 Level 2 4 | . . . . . 11 Level 3 . | . . . . . . Level 4 . | . . . . . . Level 5 . | . . . . . . High Security . | . . . . . . Max Security . | . . . . . . Squads Dispatched 13 | . 4 . . . 9 Investigation 4 | . 2 . . . 2 Extermination 2 | . . . . . 2 Reinforcement 5 | . 2 . . . 3 Assault 1 | . . . . . 1 Garrison 1 | . . . . . 1 Intercept . | . . . . . . Searches Triggered . | . . . . . . Construction Impeded . | . . . . . . Haulers Reinforced 1 | . . . . . 1 Active Scanning Responses . | . . . . . . Cargo Convoy Interrupts 1 | . . . . . 1 Stealth | -11 -10 -10 -8 -8 -6 --------- Run | Yrd Mat Sub Rec Scr Fac Distress Signals 1 | . 1 . . . . Communications Jammed . | . . . . . . Distress Signals . | . . . . . . Times Spotted 77 | . 18 17 . . 42 Peak Tracking Total 13 | . 6 4 . . 13 Tactical Retreats 11 | . . 7 . . 4 Traps | -11 -10 -10 -8 -8 -6 ------- Run | Yrd Mat Sub Rec Scr Fac Traps Triggered 4 | . 2 1 . . 1 Indirectly . | . . . . . . Trap Hack Attempts . | . . . . . . Triggered . | . . . . . . Disarmed . | . . . . . . Reprogrammed . | . . . . . . Reused . | . . . . . . Traps Extracted . | . . . . . . Installed . | . . . . . . Triggered . | . . . . . . Most Traps Carried 1 | . . . . 1 1 Machines | -11 -10 -10 -8 -8 -6 ---------- Run | Yrd Mat Sub Rec Scr Fac Machines Disabled 15 | . 1 4 . . 10 Max in Single Turn 7 | . 1 1 . . 7 Garrison Access 1 | . . . . . 1 Machines Repaired . | . . . . . . Machines Dismantled . | . . . . . . Machines Sabotaged . | . . . . . . Overloaded Fab Kills . | . . . . . . Hacking | -11 -10 -10 -8 -8 -6 --------- Run | Yrd Mat Sub Rec Scr Fac Machines Accessed 16 | . . 1 2 10 3 Terminals 1 | . . . . . 1 Fabricators . | . . . . . . Repair Stations . | . . . . . . Recycling Units 2 | . . . . . 2 Scanalyzers . | . . . . . . Garrison Access . | . . . . . . Total Hacks 104 | . . 1 24 71 8 Successful 98 | . . 1 24 71 2 Failed 6 | . . . . . 6 Catastrophic . | . . . . . . Database Lockouts . | . . . . . . Manual 4 | . . . . . 4 Terminals 4 | . . . . . 4 Fabricators . | . . . . . . Repair Stations . | . . . . . . Recycling Units 4 | . . . . . 4 Scanalyzers . | . . . . . . Garrison Access . | . . . . . . Terminal Hacks 97 | . . 1 24 71 1 Record 90 | . . . 24 66 . Robot Analysis 4 | . . . . 4 . Open DSF 1 | . . . . . 1 Derelict Proto ID Bank 2 | . . 1 . 1 . Fabricator Hacks . | . . . . . . Repair Station Hacks . | . . . . . . Recycling Unit Hacks . | . . . . . . Scanalyzer . | . . . . . . Garrison Access Hacks . | . . . . . . Unauthorized Hacks 1 | . . . . . 1 Terminals . | . . . . . . Fabricators . | . . . . . . Repair Stations 1 | . . . . . 1 Recycling Units . | . . . . . . Scrapoids 1 | . . . . . 1 Scanalyzers . | . . . . . . Garrison Access . | . . . . . . Data Cores Recovered . | . . . . . . Used . | . . . . . . Hacking Detections 3 | . . . . . 3 Full Trace Events 1 | . . . . . 1 Feedback Events . | . . . . . . Feedback Blocked . | . . . . . . Robot Schematics Acquired . | . . . . . . Robots Built . | . . . . . . Authchips . | . . . . . . Time . | . . . . . . Total Robot Build Rating . | . . . . . . Part Schematics Acquired . | . . . . . . Parts Built . | . . . . . . Authchips . | . . . . . . Time . | . . . . . . Total Part Build Rating . | . . . . . . Parts Repaired . | . . . . . . Time . | . . . . . . Parts Recycled . | . . . . . . Recycled Matter . | . . . . . . Retrieved Matter . | . . . . . . Retrieved Components . | . . . . . . Parts Scanalyzed . | . . . . . . Part Schematics Acquired . | . . . . . . Parts Damaged . | . . . . . . Bothacking | -11 -10 -10 -8 -8 -6 ------------ Run | Yrd Mat Sub Rec Scr Fac Used RIF Installer . | . . . . . . Robots Hacked . | . . . . . . Non-combat . | . . . . . . Combat . | . . . . . . Robot Hacks Applied . | . . . . . . Relay Couplers Released 3 | . . . . . 3 Machine Destruction 3 | . . . . . 3 Fabnet Peak Effective % . | . . . . . . Robots Rewired . | . . . . . . Allies Hacked . | . . . . . . Hacks Repelled . | . . . . . . Allies | -11 -10 -10 -8 -8 -6 -------- Run | Yrd Mat Sub Rec Scr Fac Total Allies 5 | . . . . . 5 Largest Group 5 | . . . . . 5 Highest-Rated Group 140 | . . . . . 140 Highest-Rated Ally 28 | . . . . . 28 Total Orders . | . . . . . . Ally Attacks 52 | . . . . . 52 Total Damage 918 | . . . . . 918 Kills 6 | . . . . . 6 Allies Corrupted . | . . . . . . Allies Melted . | . . . . . . Intel | -11 -10 -10 -8 -8 -6 ------- Run | Yrd Mat Sub Rec Scr Fac Robot Analysis Total 4 | . . . . 4 . Derelict Logs Recovered 6 | . . 1 . 5 . Drone Launches . | . . . . . . Drone Recoveries . | . . . . . . Exploration | -11 -10 -10 -8 -8 -6 ------------- Run | Yrd Mat Sub Rec Scr Fac Turns Passed 8826 | 186 756 2750 726 3433 975 Spaces Moved 5788 | 92 479 1608 555 2528 526 Core 20 | 19 . . . . 1 Treads 1 | 1 . . . . . Legs 3844 | . . 1424 555 1865 . Wheels 1923 | 72 479 184 . 663 525 Hover . | . . . . . . Flight . | . . . . . . Fastest Speed 50 | 50 95 130 130 115 109 Average Speed 133 | 108 127 142 130 129 138 Slowest Speed 1350 | 250 155 200 130 145 1350 Overloaded Moves . | . . . . . . Propulsion Burnouts . | . . . . . . Robots Hopped . | . . . . . . Cave-ins Triggered 1 | . . 1 . . . Exploration Rate (%) 56 | 5 66 72 88 94 12 Regions Visited 5 Branch Regions 3 Pre-discovered Areas 4 | . . 1 . 3 . Known Exits Taken 3 | . . 1 1 1 . Unknown Exits Taken 2 | 1 1 . . . . Scrap Searched 11 | . . 3 . 8 . Spaces Dug 18 | . . 12 . . 6 Terrain Destroyed 113 | . 41 45 . . 27 Melee 6 | . . . . . 6 Projectile 13 | . . 13 . . . AOE 94 | . 41 32 . . 21 Terrain Rammed . | . . . . . . Walls Destroyed . | . . . . . . Machines Disabled . | . . . . . . Actions | -11 -10 -10 -8 -8 -6 --------- Run | Yrd Mat Sub Rec Scr Fac Total 6549 | 131 575 1892 559 2710 682 Wait 349 | . 28 136 5 105 75 Move 5782 | 91 478 1606 554 2527 526 Hop . | . . . . . . Pick Up 83 | 6 17 20 . 33 7 Fast Attach 18 | 7 2 2 . 2 5 Attach 24 | 1 1 8 . 2 12 Detach 8 | 1 3 . . 2 2 Swap 32 | 1 6 17 . 5 3 Drop 59 | . 9 19 . 29 2 Fire 182 | 24 31 83 . . 44 Melee 6 | . . . . . 6 Ram . | . . . . . . Kick . | . . . . . . Crush . | . . . . . . Escape Stasis 1 | . . 1 . . . Rewire 5 | . . . . 5 . Trap . | . . . . . . Miscellaneous . | . . . . . . Route ------- -11/Scrapyard -10/Materials (discovered 4 exits: [*Mat x2] / [*Min] / *Sub) -10/Subcaves (discovered 3 exits: [*Mat x2] / *Rec) -8/Recycling (discovered 2 exits: *Fac / *Scr) -8/Scraptown (discovered 2 exits: *Fac x2) -6/Factory (discovered 6 exits: *Fac x4 / *Low x2) History --------- Turn | Location | Event 11 | -11/Scrapyard | Discovered new exit (range 15) 187 | -11/Scrapyard | Entered Materials 310 | -10/Materials | Build established: Mutant 316 | -10/Materials | Discovered new exit (range 6) 510 | -10/Materials | Discovered new exit (range 5) 620 | -10/Materials | Discovered new exit (range 7) 926 | -10/Materials | Discovered new exit (range 5) 943 | -10/Materials | Entered Subcaves 971 | -10/Subcaves | Shifting Twisted Machinery released Sub. Laser 1054 | -10/Subcaves | Discovered new exit (range 9) 1244 | -10/Subcaves | Visited 4L-MR0's lab 1262 | -10/Subcaves | Found Cargo Legs 1263 | -10/Subcaves | Attached Cargo Legs, gained temporary slots: Utility x2 1497 | -10/Subcaves | Discovered new exit (range 11) 1539 | -10/Subcaves | Curiously followed by a Cobbler waking with a query about "LVR3C" 1679 | -10/Subcaves | Ambushed by Subdwellers from Twisted Machinery 1986 | -10/Subcaves | A swath of the cavern ceiling suddenly collapsed 2211 | -10/Subcaves | Crushed by falling debris 2269 | -10/Subcaves | Lost 4 parts (1p1u2w) 2333 | -10/Subcaves | Ambushed by Subdwellers from Twisted Machinery 2494 | -10/Subcaves | Learned location of Zion (-6) 2494 | -10/Subcaves | Met a Zionite searching for "candidates" 2790 | -10/Subcaves | A swath of the cavern ceiling suddenly collapsed 2880 | -10/Subcaves | Shifting Twisted Machinery released Humpback 2886 | -10/Subcaves | Shifting Twisted Machinery released Scrap Shield 2982 | -10/Subcaves | Learned Materials terminal intel 3388 | -10/Subcaves | Core integrity fell below 50% 3481 | -10/Subcaves | Discovered new exit (range 13) 3622 | -10/Subcaves | Core integrity fell below 20% 3660 | -10/Subcaves | Identified exit to Recycling 3693 | -10/Subcaves | Entered Recycling 4060 | -8/Recycling | Discovered new exit (range 8) 4182 | -8/Recycling | Scanned before Scraplab entrance 4395 | -8/Recycling | Entered Scraplab 4415 | -8/Recycling | Discovered new exit (range 3) 4416 | -8/Recycling | Identified exit to Scraptown 4419 | -8/Recycling | Entered Scraptown 4419 | -8/Scraptown | System corruption cleaned by C-Scrubber 4645 | -8/Scraptown | Visited UFD Registry 4645 | -8/Scraptown | Registered with UFD as "Guntube" 4702 | -8/Scraptown | Visited Curators Association 4750 | -8/Scraptown | Visited Chapter 10 4859 | -8/Scraptown | Visited Analyses Database 4912 | -8/Scraptown | Delivered Scrap Shield to a Scientist 5354 | -8/Scraptown | Scanned Subdweller tech in exchange for log data 5358 | -8/Scraptown | Learned location of 1 exit from Research 5359 | -8/Scraptown | Learned Research security intel 5361 | -8/Scraptown | Learned 12 Factory zone layouts 5362 | -8/Scraptown | Learned Factory non-interactive machine intel 5382 | -8/Scraptown | Discovered new exit (range 11) 5503 | -8/Scraptown | Guru changed UFD alias to "Fissionchaser" 5800 | -8/Scraptown | Heard Great Nut preacher, LISTEN AND RECITE! 6162 | -8/Scraptown | Visited Junk Repository 6236 | -8/Scraptown | Visited SPCMW 6291 | -8/Scraptown | Visited Cave Peace 6388 | -8/Scraptown | Visited Cyclists 6409 | -8/Scraptown | Entered Cyclist Reading Room 6457 | -8/Scraptown | Visited Assassins FH 6499 | -8/Scraptown | Visited Shadow of the Wyrm 6559 | -8/Scraptown | Visited Bundlers 6742 | -8/Scraptown | Visited Cartography Club 6784 | -8/Scraptown | Found Surveybot 17 Chip 7008 | -8/Scraptown | Learned location of Lower Caves (-7) 7008 | -8/Scraptown | Learned location of Warlord (-5) 7008 | -8/Scraptown | Learned location of Hub_04(d) (-5) 7008 | -8/Scraptown | Learned 8 Materials zone layouts 7008 | -8/Scraptown | Learned 16 Materials zone layouts 7008 | -8/Scraptown | Learned 24 Factory zone layouts 7008 | -8/Scraptown | Learned 16 Lower Caves zone layouts 7008 | -8/Scraptown | Learned 8 Upper Caves zone layouts 7008 | -8/Scraptown | Learned 16 Upper Caves zone layouts 7008 | -8/Scraptown | Learned 8 Proximity Caves zone layouts 7008 | -8/Scraptown | Learned 4 Armory zone layouts 7008 | -8/Scraptown | Learned location of 3 exits from Upper Caves 7008 | -8/Scraptown | Learned location of 2 exits from Proximity Caves 7008 | -8/Scraptown | Identified exit to Factory 7053 | -8/Scraptown | Found Deep Structural Scanner 7100 | -8/Scraptown | Visited Science Guys 7417 | -8/Scraptown | Visited Botcube Research 7423 | -8/Scraptown | Found Botcube 7457 | -8/Scraptown | Visited A0-MCA Data Center 7464 | -8/Scraptown | Given a C rating by A0-MCA 7470 | -8/Scraptown | Found A0-MCA's Component Scanner 7490 | -8/Scraptown | Visited Derelict Rescue Squad 7500 | -8/Scraptown | Found DRS Beacon 7532 | -8/Scraptown | Visited Research Penetration Think Tank 7794 | -8/Scraptown | Found Scrap Suit 7803 | -8/Scraptown | Found Scrap Suit 7852 | -8/Scraptown | Entered Factory 7852 | -6/Factory | Evolved 8 slots: Propulsion x1, Utility x6, Weapon x1 7853 | -6/Factory | Identified exit to Factory 7853 | -6/Factory | Identified exit to Lower Caves 7855 | -6/Factory | Loaded intel: 290 non-interactive machine locations 8134 | -6/Factory | Garrison activated, responded to threat 8423 | -6/Factory | Scrapoid reinforcements arrived 8566 | -6/Factory | Lost 4 allies 8621 | -6/Factory | Lost 4 parts (1n2u1w) 8725 | -6/Factory | Lost 3 parts (1u2w) 8777 | -6/Factory | Cargo convoy interrupted 8795 | -6/Factory | Core integrity fell below 50% 8824 | -6/Factory | Core integrity fell below 20% 8827 | -6/Factory | Destroyed by exploding Fusion Modulator Last Messages --------------- 08795_ Lyr. Light Armor Plating destroyed. 08797_ P-60 Hacker resets I-36 Angel, system corruption cleaned. 08798_ Slug penetrates Wall. 08798_ Imp. Heat Sink destroyed. 08804_ Slug penetrates X-72 Disruptor. 08804_ U-05 Engineer builds a Wall. 08804_ K-01 Serf collects debris. 08810_ U-05 Engineer builds a Wall. 08816_ M-28 Smith fits Backup Power III on I-36 Angel. 08816_ Chain reaction triggered in Imp. Ion Engine. 08816_ Ovr. Scrapsphere destroyed. 08816_ Slug penetrates Wall. 08819_ Wall collapses. 08819_ K-01 Serf cleans the Fusion Modulator. 08820_ Slug penetrates Fusion Modulator. 08822_ K-01 Serf cleans the Fusion Modulator. 08826_ Slug penetrates Fusion Modulator. 08826_ Slug penetrates P-60 Hacker. 08826_ P-60 Hacker destroyed. 08827_ Fusion Modulator explodes. Map ----- +----------------------------------------------------+ | ??????+ # """ """ #????????????????? | | ??????# """ """ # """ """ #????????????????? | | ??????# """ """ # """ """ #????????????????? | | ??????# """ """ # #????????????????? | | ## #????????????????"""?"""?? #################? | | ## #????????????????"""?"""?? # #? | | ## #????????????????"""?"""?? + #? | | #### #????????????????????????? # #? | | #????????????????"""?"""?? # #? | | ????????????????"""?"""?? # #? | | ????????????????""" """?? # """"""""" #? | | ??????????????????? ????? # #? | | ????????????????""" """?? # ## | | "" """?"""?"""?????? """ """?? # "T" # | | "" """?"""?"""?????? """ """?? # """ ## | | "" """?"""?""" ???? ?? ???? #################? | | ?????? #### """ """?? ######## #???? | | ?????? """ """?? # #???? | | ??????# t """ """?? # #???? | | ######??????# k # ##### | | ### ??????#A """ """ ##+##### | | # ??????# """ """ #???# | | # ??????# """ """u #???# | | # """?"""?# // ##### | | # """?"""?# /! """ # | | # """?"""?# i/! x @""" # | | # ??????# """ """""" + | | # ??????# g |![ """""" # | | ######??????# xxh h p* """""" # | | ??? ??# ###m#;#########" """""" # | | ???? ?# # u #????# # | | ???? ?# # """" #????# + | | ????? # # """" #????# ########### | | ????? # # h """" #????# #?????????? | | ??? / # """" #????# ##????????? | | """ # # """" #????# T#????##### | | """""???# = # """" #????# #????# | | """""???# % # #????# ##????# " | | ??????# = ###########????# #?????# " | | ??????# "#?????????????# ####### " | | ??????# ##?????????????# + " | | ######???##?# ##############?# ####### " | | ##########"## # #?# #?????# " | | = # %%* " #?##### #?????# " | | % # ! # #?????# #?????# " | | " " " "%" %# # #?????# #?????# " | | " " " " " %# # """"" #?????# #?????# | | " " " " " # # """""?#?????# #?????# | | " " " " " / + """ ??#######+########### | | " " " " " " # # # | +----------------------------------------------------+ Best States ------------- Heat Dissipation 65 Energy Generation 25 Energy Capacity 450 Matter Stores 300 Matter Capacity 300 Sight Range 16 Robot Scan Range 14 Terrain Scan Density 10 Armor Coverage 1600 Phase Shifting 5 Evasion (%) 55 Recoil Reduction 1 Trap Extractor Capacity 4 Item Schematics ----------------- None Robot Schematics ------------------ None Fabricated ------------ Nothing Alien Tech Used ----------------- None Achievements -------------- None Challenges ------------ None Game ------ Seed NullStasisWell Manual? 0 Play Time 01:50:17 Cumulative 86.6 hours Start 2024.10.24 @ 00:02:25 End 2024.10.24 @ 02:12:09 Sessions 1 Manual Loads 0 Difficulty Rogue Special Mode None Game No. 143 Rogue 115 Adventurer 28 Explorer 0 Win Type - Total 0 Types 0/0/0/0/0/0/0/0/0 Lore% 31 Gallery% 31 Achievement% 32 Wizard Run 0 Options --------- Layout 0 ASCII 0 Keyboard 1 Movement Numpad Keybinds 0 Fullscreen 2 Font 36/Smallcaps Map View 76x50 Zoom Use 0% Tactical HUD 1 Map Filters NONE Filters NONE Steam 1 RUN: f732311d-df49-4ac2-8ba9-3aca0dea0eb0